{"text_format":"1","workbook":"xlsx","n_sheets":1,"sheets":["ورقة1"],"not_rendered":{"charts":0,"images":0,"macros":1,"external_links":0,"defined_names":0,"comments":0,"pivot_tables":0},"unopened":[],"bounds":{"document_bytes":16777216,"sheet_cells":100000,"rows_first":2000,"rows_last":500,"rows_between":2000,"halvings":0,"cell_chars":16384,"cell_head_chars":4096},"cells_cut":0,"cells_raw":0,"read":"whole","date_system":"1900"}

{"sheet":"ورقة1","index":0,"n_rows":13,"n_cols":13,"rows_kept":13,"cut":false,"hidden":false,"merged":[[2,8,2,10],[4,8,7,8]]}
[]
[]
[null,null,null,null,null,null,null,null,"جدول البيانات"]
[null,"م","الاسم","مواد الرسوب","النتيجة في",null,null,null,"الاسم","مواد الرسوب","النتيجة في",null,{"$f":"\"$I$5\"","v":"$I$5"}]
[{"$f":"IF($I$5=C5,COUNTIF($C$5:C5,C5),\"\")","v":1},1,"نادر","عربى","الدور الأول",null,null,null,"نادر",{"$f":"IFERROR(VLOOKUP(ROW()-4,$A$5:$E$13,4,0),\"\")","v":"عربى"},{"$f":"IFERROR(VLOOKUP(ROW()-4,$A$5:$E$13,5,0),\"\")","v":"الدور الأول"},null,{"$f":"$J5<>\"\"","v":true}]
[{"$f":"IF($I$5=C6,COUNTIF($C$5:C6,C6),\"\")","v":""},2,"جلال","انجليزى","الدور الأول",null,null,null,null,{"$f":"IFERROR(VLOOKUP(ROW()-4,$A$5:$E$13,4,0),\"\")","v":"علوم"},{"$f":"IFERROR(VLOOKUP(ROW()-4,$A$5:$E$13,5,0),\"\")","v":"الدور الأول"}]
[{"$f":"IF($I$5=C7,COUNTIF($C$5:C7,C7),\"\")","v":""},3,"عادل","رياضيات","الدور الأول",null,null,null,null,"انجليزى","الدور الثانى"]
[{"$f":"IF($I$5=C8,COUNTIF($C$5:C8,C8),\"\")","v":2},4,"نادر","علوم","الدور الأول",null,null,null,null,"علوم","الدور الثانى"]
[{"$f":"IF($I$5=C9,COUNTIF($C$5:C9,C9),\"\")","v":3},5,"نادر","انجليزى","الدور الثانى",null,null,null,null,"",""]
[{"$f":"IF($I$5=C10,COUNTIF($C$5:C10,C10),\"\")","v":4},6,"نادر","علوم","الدور الثانى",null,null,null,null,"اختر من القائمة المنسدلة وسيتم عرض البيانات"]
[{"$f":"IF($I$5=C11,COUNTIF($C$5:C11,C11),\"\")","v":""},7,"جلال","انجليزى","الدور الثانى"]
[{"$f":"IF($I$5=C12,COUNTIF($C$5:C12,C12),\"\")","v":""},8,"عادل","رياضيات","الدور الثانى"]
[{"$f":"IF($I$5=C13,COUNTIF($C$5:C13,C13),\"\")","v":""},9,"عادل","علوم","الدور الثانى"]